bitfinex/quotes_BTCUSD_20240729
["timestamp","ask_amount","ask_price","bid_price","bid_amount"]
[1722292557100,1.80668484,67379.0,67378.0,0.0245024]
[1722292557345,1.86468202,67379.0,67378.0,0.0245024]
[1722292557544,1.87868202,67379.0,67378.0,0.0245024]
[1722292557716,1.88768202,67379.0,67378.0,0.0245024]
[1722292558871,1.47945402,67379.0,67378.0,0.0245024]
[1722292559081,1.42145684,67379.0,67378.0,0.0245024]
[1722292559283,1.38194559,67379.0,67378.0,0.0245024]
[1722292559687,1.37265684,67379.0,67378.0,0.0245024]
[1722292560829,1.35865684,67379.0,67378.0,0.0245024]
[1722292561034,1.37265684,67379.0,67378.0,0.0245024]
[1722292561366,1.35865684,67379.0,67378.0,0.0245024]
[1722292561805,1.37265684,67379.0,67378.0,0.0245024]
[1722292562226,1.35865684,67379.0,67378.0,0.0245024]
[1722292562588,1.37265684,67379.0,67378.0,0.0245024]
[1722292562789,1.07582884,67379.0,67378.0,0.0245024]
[1722292562992,1.09911706,67379.0,67378.0,0.0245024]
[1722292564014,1.07582884,67379.0,67378.0,0.0245024]
[1722292564681,1.37265684,67379.0,67378.0,0.0245024]
[1722292565430,1.43063838,67379.0,67378.0,0.0245024]
[1722292566999,1.42593143,67379.0,67378.0,0.0245024]
[1722292569244,1.51233143,67379.0,67378.0,0.0245024]
[1722292569449,1.45434989,67379.0,67378.0,0.0245024]
[1722292569620,1.5121893,67379.0,67378.0,0.0245024]
[1722292571608,1.53547728,67379.0,67378.0,0.0245024]
[1722292571790,1.5121893,67379.0,67378.0,0.0245024]
[1722292572763,1.51243188,67379.0,67378.0,0.0245024]
[1722292573020,1.51243188,67379.0,67378.0,0.1036024]
[1722292573209,0.83237588,67379.0,67378.0,0.11396264]
[1722292573446,0.83237588,67379.0,67378.0,0.17836264]
[1722292573863,0.27313388,67379.0,67378.0,0.17836264]
[1722292574331,0.22905189,67379.0,67378.0,0.17836264]
[1722292574566,0.20105189,67379.0,67378.0,0.17836264]
[1722292574751,0.21505189,67379.0,67378.0,0.24990619]
[1722292575123,0.23833698,67379.0,67378.0,0.24990619]
[1722292575325,0.22433698,67379.0,67378.0,0.24990619]
[1722292575545,0.23833698,67379.0,67378.0,0.24990619]
[1722292575690,0.25233698,67379.0,67378.0,0.24990619]
[1722292575891,0.25233698,67379.0,67378.0,0.39832219]
[1722292576292,0.22905189,67379.0,67378.0,0.39832219]
[1722292576492,0.04427487,67379.0,67378.0,0.69515419]
[1722292576688,0.04427487,67379.0,67378.0,0.99198619]
[1722292576894,0.014,67379.0,67378.0,0.99198619]
[1722292577112,0.014,67379.0,67378.0,1.28881819]
[1722292577334,0.028,67379.0,67378.0,1.28881819]
[1722292577543,0.00084,67388.0,67384.0,0.148401]
[1722292577749,0.14393939,67388.0,67387.0,0.1662]
[1722292577953,0.16013914,67388.0,67387.0,0.1662]
[1722292578300,0.16013914,67388.0,67385.0,0.14574695]
[1722292578301,0.14393939,67388.0,67385.0,0.0798]
[1722292578496,0.741992,67386.0,67385.0,0.0798]
[1722292578663,0.93194084,67386.0,67385.0,0.0798]
[1722292579079,0.94814059,67386.0,67385.0,0.0798]
[1722292579220,1.00659292,67386.0,67385.0,0.0798]
[1722292579630,0.97142379,67386.0,67385.0,0.0798]
[1722292580118,0.94814059,67386.0,67385.0,0.0798]
[1722292580877,0.96214059,67386.0,67385.0,0.0798]
[1722292581110,0.97614059,67386.0,67385.0,0.0798]
[1722292581282,0.96214059,67386.0,67385.0,0.0798]
[1722292581457,0.96199919,67386.0,67385.0,0.0798]
[1722292581658,0.97599919,67386.0,67385.0,0.0798]
[1722292581939,0.96199919,67386.0,67385.0,0.0798]
[1722292582138,0.94799919,67386.0,67385.0,0.0798]
[1722292582355,0.96199919,67386.0,67385.0,0.0798]
[1722292583411,0.98528254,67386.0,67385.0,0.0798]
[1722292583586,1.04392372,67386.0,67385.0,0.0798]
[1722292583789,1.02992372,67386.0,67385.0,0.0798]
[1722292584395,1.04392372,67386.0,67385.0,0.0798]
[1722292584602,1.02064037,67386.0,67385.0,0.0798]
[1722292584802,1.03464037,67386.0,67385.0,0.0798]
[1722292585210,1.02064037,67386.0,67385.0,0.0798]
[1722292585609,1.03464037,67386.0,67385.0,0.0798]
[1722292585898,1.03474211,67386.0,67385.0,0.0798]
[1722292587786,1.05802537,67386.0,67385.0,0.0798]
[1722292588364,1.01131732,67386.0,67385.0,0.0798]
[1722292588549,1.0574786,67386.0,67385.0,0.0798]
[1722292589096,1.05727218,67386.0,67385.0,0.0798]
[1722292589889,0.76047518,67386.0,67385.0,0.0798]
[1722292590190,0.31528018,67386.0,67385.0,0.09411]
[1722292590385,0.31528018,67386.0,67385.0,0.15441]
[1722292590386,0.25674368,67386.0,67385.0,0.15441]
[1722292591124,0.22874368,67386.0,67385.0,0.15441]
[1722292591646,0.25674368,67386.0,67385.0,0.15441]
[1722292591802,0.25634984,67386.0,67385.0,0.15441]
[1722292592007,0.24234984,67386.0,67385.0,0.15441]
[1722292592196,0.25634984,67386.0,67385.0,0.15441]
[1722292593288,0.24234984,67386.0,67385.0,0.15441]
[1722292593708,0.25634984,67386.0,67385.0,0.15441]
[1722292593847,0.24234984,67386.0,67385.0,0.15441]
[1722292594054,0.18218856,67386.0,67385.0,0.15441]
[1722292594250,0.05348301,67386.0,67385.0,0.15441]
[1722292594511,0.06748301,67386.0,67385.0,0.30281]
[1722292594687,0.05128326,67386.0,67385.0,0.30281]
[1722292595051,0.03728326,67386.0,67385.0,0.30281]
[1722292595493,0.014,67386.0,67385.0,0.30281]
[1722292595671,0.028,67386.0,67385.0,0.30281]
[1722292596031,0.014,67386.0,67385.0,0.30281]
[1722292596234,0.028,67386.0,67385.0,0.30281]
[1722292596651,0.028,67386.0,67385.0,0.15441]
[1722292597681,0.014,67386.0,67385.0,0.15441]
[1722292598109,0.028,67386.0,67385.0,0.15441]
[1722292598336,0.04442948,67386.0,67385.0,0.15441]
[1722292598596,0.028,67386.0,67385.0,0.15441]
[1722292598805,0.04442948,67386.0,67385.0,0.15441]
[1722292600163,0.06771071,67386.0,67385.0,0.15441]
[1722292600357,0.04032211,67386.0,67385.0,0.15441]
[1722292600558,0.0756402,67386.0,67385.0,0.15441]
[1722292600763,0.028,67386.0,67385.0,0.15441]
[1722292601099,0.028,67386.0,67385.0,0.15737745]
[1722292601470,0.028,67386.0,67385.0,0.30577745]
[1722292601677,0.028,67386.0,67385.0,0.896412]
[1722292602394,0.05128023,67386.0,67385.0,0.908412]
[1722292602551,0.05128023,67386.0,67385.0,0.896412]
[1722292603558,0.028,67386.0,67385.0,0.896412]
[1722292604962,0.028,67386.0,67385.0,0.599611]
[1722292605614,0.028,67386.0,67385.0,0.15441]
[1722292605813,0.07450685,67386.0,67385.0,0.15441]
[1722292606277,0.09101453,67386.0,67385.0,0.15441]
[1722292606685,0.0977876,67386.0,67385.0,0.15441]
[1722292606884,0.11429528,67386.0,67385.0,0.15441]
[1722292607926,0.09101453,67386.0,67385.0,0.15441]
[1722292610243,0.09101453,67386.0,67385.0,0.30281]
[1722292610430,0.07450685,67386.0,67385.0,0.599611]
[1722292610630,0.07450685,67386.0,67385.0,0.896412]
[1722292610832,0.07450685,67386.0,67385.0,1.203213]
[1722292610833,0.028,67386.0,67385.0,1.203213]
[1722292611050,0.05128011,67386.0,67385.0,0.15441]
[1722292611457,0.08740065,67386.0,67385.0,0.15441]
[1722292611658,0.07503631,67386.0,67385.0,0.15441]
[1722292612064,0.08740065,67386.0,67385.0,0.15441]
[1722292613201,0.08740065,67386.0,67385.0,0.16315114]
[1722292614669,0.11068136,67386.0,67385.0,0.16315114]
[1722292615068,0.08740065,67386.0,67385.0,0.16315114]
[1722292616687,0.07503631,67386.0,67385.0,0.16315114]
[1722292616852,0.08738732,67386.0,67385.0,0.16315114]
[1722292619809,0.11066799,67386.0,67385.0,0.16315114]
[1722292620209,0.08738732,67386.0,67385.0,0.16315114]
[1722292622541,0.08738732,67386.0,67385.0,0.31155114]
[1722292622898,0.09831686,67386.0,67385.0,0.31155114]
[1722292623097,0.07503631,67386.0,67385.0,0.31155114]
[1722292624143,0.07503631,67386.0,67385.0,0.16315114]
[1722292625313,0.08945405,67386.0,67385.0,0.16275134]
[1722292625868,0.11273464,67386.0,67385.0,0.14844134]
[1722292626998,0.08945405,67386.0,67385.0,0.14844134]
[1722292627532,0.07503631,67386.0,67385.0,0.14844134]
[1722292627732,0.08945405,67386.0,67385.0,0.14844134]
[1722292630275,0.11273464,67386.0,67385.0,0.14844134]
[1722292630452,0.11273464,67386.0,67385.0,0.24464313]
[1722292630647,0.08945405,67386.0,67385.0,0.24464313]
[1722292632396,0.08945405,67386.0,67385.0,0.24556713]
[1722292632597,0.09029405,67386.0,67385.0,0.24556713]
[1722292633367,0.09029405,67386.0,67385.0,0.33196713]
[1722292633904,0.11357464,67386.0,67385.0,0.33196713]
[1722292635167,0.09029405,67386.0,67385.0,0.33196713]
[1722292636191,0.09029405,67386.0,67385.0,0.14936534]
[1722292636404,0.09029405,67386.0,67385.0,0.08906534]
[1722292639745,0.11357459,67386.0,67385.0,0.08906534]
[1722292639976,0.09029405,67386.0,67385.0,0.08906534]
[1722292642209,0.11357472,67386.0,67385.0,0.08906534]
[1722292642813,0.09029405,67386.0,67385.0,0.16486743]
[1722292644787,0.09029405,67386.0,67385.0,0.96696943]
[1722292645083,0.09029405,67386.0,67385.0,0.97696943]
[1722292645084,0.07587631,67386.0,67385.0,0.97696943]
[1722292645255,0.02884,67386.0,67385.0,1.39708566]
[1722292645466,0.02884,67386.0,67385.0,1.39908566]
[1722292645868,0.0521188,67386.0,67385.0,1.39908566]
[1722292646926,0.0241188,67386.0,67385.0,1.40908566]
[1722292647127,0.0341188,67386.0,67385.0,1.41908566]
[1722292647335,0.02484,67386.0,67385.0,1.29577043]
[1722292647491,0.02484,67386.0,67385.0,1.41907778]
[1722292647647,0.01084,67386.0,67385.0,1.41907778]
[1722292647855,0.01384,67386.0,67385.0,1.41907778]
[1722292648053,0.00584,67386.0,67385.0,1.41907778]
[1722292648251,0.00584,67386.0,67385.0,1.81587878]
[1722292648454,0.00184,67386.0,67385.0,1.81587878]
[1722292648896,0.00384,67386.0,67385.0,1.81587878]
[1722292649973,0.00084,67388.0,67387.0,1.595768]
[1722292650172,0.00084,67388.0,67387.0,1.86217474]
[1722292650676,0.02411514,67388.0,67387.0,1.86217474]
[1722292651221,0.02811514,67388.0,67387.0,1.56538174]
[1722292651423,0.03111514,67388.0,67387.0,1.56538174]
[1722292651764,0.03111514,67388.0,67387.0,0.55660274]
[1722292651973,0.03111514,67388.0,67387.0,0.14309939]
[1722292652174,0.03111514,67388.0,67387.0,0.148396]
[1722292652175,0.00784,67388.0,67387.0,0.148396]
[1722292652458,0.00784,67388.0,67387.0,0.0864]
[1722292652594,0.00784,67388.0,67385.0,0.00966514]
[1722292652800,0.00784,67388.0,67387.0,0.234796]
[1722292653448,0.00384,67388.0,67387.0,0.234796]
[1722292653647,0.02231347,67388.0,67387.0,0.32655181]
[1722292653855,0.00784,67388.0,67387.0,0.62334481]
[1722292655260,0.031118,67388.0,67387.0,0.53694481]
[1722292656476,0.00384,67388.0,67387.0,0.53694481]
[1722292657681,0.00384,67388.0,67387.0,0.97853781]
[1722292658070,0.00784,67388.0,67387.0,0.98853781]
[1722292658273,0.00784,67388.0,67387.0,0.97853781]
[1722292659836,0.03111758,67388.0,67387.0,0.97853781]
[1722292660217,0.03111758,67388.0,67387.0,0.98853781]
[1722292661126,0.00784,67388.0,67387.0,0.98853781]
[1722292661789,0.00784,67388.0,67387.0,0.97853781]
[1722292662262,0.00784,67388.0,67387.0,0.99053781]
[1722292664263,0.03111741,67388.0,67387.0,0.99053781]
[1722292664463,0.00784,67388.0,67387.0,0.97853781]
[1722292665388,0.00784,67388.0,67387.0,0.83373781]
[1722292667444,0.03111759,67388.0,67387.0,0.83373781]
[1722292668497,0.00784,67388.0,67387.0,0.83373781]
[1722292671907,0.03111794,67388.0,67387.0,0.83373781]
[1722292672315,0.00784,67388.0,67387.0,0.83373781]
[1722292674398,0.00784,67388.0,67387.0,0.24015181]
[1722292674824,0.00784,67388.0,67387.0,0.53694481]
[1722292675640,0.03111803,67388.0,67387.0,0.53694481]
[1722292675964,0.03111803,67388.0,67386.0,0.000924]
[1722292676274,1.13325069,67387.0,67386.0,0.000924]
[1722292676553,1.14666832,67387.0,67386.0,0.000924]
[1722292676989,1.14707003,67387.0,67386.0,0.000924]
[1722292677195,1.25803541,67387.0,67386.0,0.000924]
[1722292677404,1.44386303,67387.0,67386.0,0.000924]
[1722292678087,1.44586303,67387.0,67386.0,0.000924]
[1722292678402,1.45786303,67387.0,67386.0,0.000924]
[1722292678684,1.47186303,67387.0,67386.0,0.000924]
[1722292680213,1.49490785,67387.0,67386.0,0.000924]
[1722292680452,1.49490788,67387.0,67386.0,0.000924]
[1722292681790,1.60574666,67387.0,67386.0,0.000924]
[1722292682339,1.4375748,67387.0,67386.0,0.000924]
[1722292682542,1.4949718,67387.0,67386.0,0.000924]
[1722292682779,1.50180534,67387.0,67386.0,0.000924]
[1722292685638,1.44440834,67387.0,67386.0,0.000924]
[1722292685841,1.50167475,67387.0,67386.0,0.000924]
[1722292687684,1.50186878,67387.0,67386.0,0.000924]
[1722292688637,1.4785857,67387.0,67386.0,0.000924]
[1722292688981,1.42112526,67387.0,67386.0,0.000924]
[1722292689197,1.47890127,67387.0,67386.0,0.000924]
[1722292689937,1.09920827,67387.0,67386.0,0.000924]
[1722292690139,0.80241527,67387.0,67386.0,0.000924]
[1722292690344,0.44784626,67387.0,67386.0,0.000924]
[1722292690545,0.38624626,67387.0,67386.0,0.000924]
[1722292690716,0.23785026,67387.0,67386.0,0.000924]
[1722292690938,0.38624626,67387.0,67386.0,0.000924]
[1722292691979,0.40952765,67387.0,67386.0,0.000924]
[1722292692181,0.68303926,67387.0,67386.0,0.000924]
[1722292693701,0.97983226,67387.0,67386.0,0.000924]
[1722292693874,0.68303926,67387.0,67386.0,0.000924]
[1722292694904,0.23785026,67387.0,67386.0,0.000924]
[1722292695130,0.23785026,67387.0,67386.0,0.079424]
[1722292695247,0.23785026,67387.0,67386.0,0.0940088]
[1722292695473,0.70632098,67387.0,67386.0,0.0940088]
[1722292695668,0.70632098,67387.0,67386.0,0.0155088]
[1722292695869,0.38624626,67387.0,67386.0,0.0155088]
[1722292696311,0.38624626,67387.0,67386.0,0.000924]
[1722292698603,0.38708626,67387.0,67386.0,0.000924]
[1722292699344,0.38708626,67387.0,67386.0,0.087324]
[1722292699345,0.23869026,67387.0,67386.0,0.087324]
[1722292699500,0.38708626,67387.0,67386.0,0.087324]
[1722292699701,0.38708626,67387.0,67386.0,0.1105488]
[1722292700303,0.41036752,67387.0,67386.0,0.1105488]
[1722292700707,0.41495153,67387.0,67386.0,0.1105488]
[1722292701149,0.41495153,67387.0,67386.0,0.087324]
[1722292702536,0.26655553,67387.0,67386.0,0.087324]
[1722292702858,0.26655553,67387.0,67386.0,0.229324]
[1722292703059,0.12345614,67387.0,67386.0,0.377722]
[1722292703261,0.12345614,67387.0,67386.0,0.229324]
[1722292703460,0.12109221,67387.0,67386.0,0.43252212]
[1722292703665,0.08675725,67387.0,67386.0,0.43252212]
[1722292704307,0.07275725,67387.0,67386.0,0.43252212]
[1722292704696,0.08675725,67387.0,67386.0,0.43252212]
[1722292706065,0.07275725,67387.0,67386.0,0.28412412]
[1722292706274,0.08675725,67387.0,67386.0,0.28412412]
[1722292706466,0.09781095,67387.0,67386.0,0.35566767]
[1722292706921,0.1210907,67387.0,67386.0,0.35566767]
[1722292707287,0.09781095,67387.0,67386.0,0.35566767]
[1722292708612,0.09781095,67387.0,67386.0,0.087324]
[1722292712507,0.12109114,67387.0,67386.0,0.087324]
[1722292713005,0.09781095,67387.0,67386.0,0.087324]
[1722292714189,0.12109123,67387.0,67386.0,0.087324]
[1722292715634,0.09781095,67387.0,67386.0,0.087324]
[1722292716907,0.09781095,67387.0,67386.0,0.12588322]
[1722292718647,0.06317396,67387.0,67386.0,0.70627822]
[1722292719098,0.02884,67387.0,67386.0,0.70627822]
[1722292719683,0.01484,67387.0,67386.0,0.77782177]
[1722292719887,0.02784,67387.0,67386.0,0.77782177]
[1722292721741,0.01384,67387.0,67386.0,0.77782177]
[1722292722506,0.03711943,67387.0,67386.0,0.77782177]
[1722292723245,0.05111943,67387.0,67386.0,0.77782177]
[1722292723659,0.02784,67387.0,67386.0,0.77782177]
[1722292724786,0.296731,67402.0,67386.0,0.77782177]
[1722292724787,0.148375,67397.0,67394.0,0.0864]
[1722292724974,0.148375,67397.0,67395.0,0.00864]
[1722292724975,0.14309939,67396.0,67395.0,0.00864]
[1722292725274,0.15549747,67396.0,67395.0,0.00864]
[1722292725476,0.30231927,67396.0,67395.0,0.00864]
[1722292725659,0.15394327,67396.0,67395.0,0.00864]
[1722292725865,0.30354253,67396.0,67395.0,0.00864]
[1722292726224,0.30231927,67396.0,67395.0,0.00864]
[1722292726694,0.32559787,67396.0,67395.0,0.00864]
[1722292727045,0.30231927,67396.0,67395.0,0.00864]
[1722292727876,0.30231927,67396.0,67393.0,0.0864]
[1722292728055,0.16594327,67396.0,67395.0,0.001]
[1722292728455,0.31431927,67396.0,67395.0,0.001]
[1722292730026,0.32731927,67396.0,67395.0,0.002]
[1722292730417,0.35059806,67396.0,67395.0,0.01084]
[1722292730619,0.39694404,67396.0,67395.0,0.01084]
[1722292731037,0.38494404,67396.0,67395.0,0.00984]
[1722292731572,0.36166525,67396.0,67395.0,0.00984]
[1722292731867,0.36250525,67396.0,67395.0,0.00984]
[1722292732083,0.65925825,67396.0,67395.0,0.001]
[1722292732284,1.15704487,67396.0,67395.0,0.001]
[1722292732500,1.16904487,67396.0,67395.0,0.001]
[1722292733452,1.15704487,67396.0,67395.0,0.001]
[1722292733718,1.16904487,67396.0,67395.0,0.002]
[1722292735125,1.489077,67396.0,67395.0,0.002]
[1722292735324,1.43254338,67396.0,67395.0,0.002]
[1722292735465,1.48877201,67396.0,67395.0,0.002]
[1722292735871,1.48857984,67396.0,67395.0,0.002]
[1722292737321,1.48862874,67396.0,67395.0,0.002]
[1722292738417,1.59962617,67396.0,67395.0,0.002]
[1722292738618,1.59982666,67396.0,67395.0,0.002]
[1722292739428,1.48883052,67396.0,67395.0,0.002]
[1722292741354,1.48879624,67396.0,67395.0,0.002]
[1722292741557,1.57519624,67396.0,67395.0,0.002]
[1722292741683,1.84867011,67396.0,67395.0,0.002]
[1722292741885,2.03835487,67396.0,67395.0,0.002]
[1722292742071,2.04835487,67396.0,67395.0,0.002]
[1722292742273,2.19822074,67396.0,67395.0,0.002]
[1722292742889,2.18822074,67396.0,67395.0,0.002]
[1722292743069,2.04835487,67396.0,67395.0,0.002]
[1722292743499,2.19814222,67396.0,67395.0,0.002]
[1722292744301,2.17673248,67396.0,67395.0,0.001]
[1722292744622,2.18873248,67396.0,67395.0,0.002]
[1722292745076,2.21201516,67396.0,67395.0,0.002]
[1722292745572,2.0622236,67396.0,67395.0,0.002]
[1722292745775,2.0492236,67396.0,67395.0,0.001]
[1722292746118,2.03994092,67396.0,67395.0,0.001]
[1722292747475,2.03958419,67396.0,67395.0,0.001]
[1722292749450,2.0628668,67396.0,67395.0,0.001]
[1722292749853,2.03958419,67396.0,67395.0,0.001]
[1722292750630,1.89341725,67396.0,67395.0,0.001]
[1722292750822,1.65269391,67396.0,67395.0,0.001]
[1722292751581,1.56629391,67396.0,67395.0,0.001]
[1722292751806,1.59526585,67396.0,67395.0,0.001]
[1722292753128,1.61854708,67396.0,67395.0,0.001]
[1722292753956,1.61854545,67396.0,67395.0,0.001]
[1722292754263,1.59526422,67396.0,67395.0,0.001]
[1722292757318,1.48476913,67396.0,67395.0,0.001]
[1722292757529,0.43191013,67396.0,67395.0,0.0825]
[1722292757744,0.72866313,67396.0,67395.0,0.0825]
[1722292758553,0.43191013,67396.0,67395.0,0.0825]
[1722292758873,0.44118941,67396.0,67395.0,0.0825]
[1722292759060,0.41791013,67396.0,67395.0,0.0825]
[1722292759266,0.41991013,67396.0,67395.0,0.0815]
[1722292759648,0.43391013,67396.0,67395.0,0.11173436]
[1722292759894,0.43390968,67396.0,67395.0,0.11173436]
[1722292760064,0.41990968,67396.0,67395.0,0.11173436]
[1722292760265,0.41990968,67396.0,67395.0,0.0815]
[1722292760468,0.43390968,67396.0,67395.0,0.0815]
[1722292761850,0.45656608,67396.0,67395.0,0.0815]
[1722292762049,0.43328724,67396.0,67395.0,0.0815]
[1722292763698,0.43328724,67396.0,67389.0,0.0622]
[1722292763699,0.34691124,67396.0,67389.0,0.0622]
[1722292763916,0.148385,67392.0,67391.0,0.079]
[1722292764088,0.33720793,67392.0,67391.0,0.079]
[1722292764278,0.34787998,67392.0,67391.0,0.079]
[1722292764480,0.34787998,67392.0,67391.0,0.0932124]
[1722292765314,0.38515979,67392.0,67391.0,0.0932124]
[1722292766336,0.68193079,67392.0,67391.0,0.0932124]
[1722292766550,0.68193079,67392.0,67391.0,0.079]
[1722292766728,0.68167913,67392.0,67391.0,0.079]
[1722292769792,0.65839932,67392.0,67391.0,0.079]
[1722292769995,0.67239932,67392.0,67391.0,0.079]
[1722292770205,0.37562832,67392.0,67391.0,0.079]
[1722292770404,0.37562832,67392.0,67391.0,0.10900675]
[1722292772575,0.39890813,67392.0,67391.0,0.10900675]
[1722292773088,0.37562832,67392.0,67391.0,0.10900675]
[1722292773496,0.37573507,67392.0,67391.0,0.10900675]
[1722292774148,0.23288734,67392.0,67391.0,0.10900675]
[1722292774450,0.52965834,67392.0,67391.0,0.10900675]
[1722292774999,0.23288734,67392.0,67391.0,0.10900675]
[1722292776324,0.2561671,67392.0,67391.0,0.10900675]
[1722292777508,0.23288734,67392.0,67391.0,0.10900675]
[1722292778045,0.37598673,67392.0,67391.0,0.079]
[1722292778316,0.148394,67388.0,67387.0,0.0778]
[1722292778485,0.49101229,67388.0,67387.0,0.0778]
[1722292778704,0.50179452,67388.0,67387.0,0.0778]
[1722292779348,0.20500652,67388.0,67387.0,0.0778]
[1722292780729,0.2282868,67388.0,67387.0,0.0778]
[1722292780928,0.22542643,67388.0,67387.0,0.0778]
[1722292781067,0.21414615,67388.0,67387.0,0.0778]
[1722292781505,0.51093415,67388.0,67387.0,0.0778]
[1722292782628,0.52393415,67388.0,67387.0,0.0778]
[1722292784194,0.54721444,67388.0,67387.0,0.0778]
[1722292784571,0.445189,67387.0,67386.0,0.000924]
[1722292784779,0.63273581,67387.0,67386.0,0.000924]
[1722292784980,0.69742287,67387.0,67386.0,0.000924]
[1722292785194,0.69742289,67387.0,67386.0,0.000924]
[1722292785513,0.69897709,67387.0,67386.0,0.000924]
[1722292785914,0.65559474,67387.0,67386.0,0.000924]
[1722292786064,0.65404054,67387.0,67386.0,0.000924]
[1722292786264,0.70927292,67387.0,67386.0,0.000924]
[1722292786458,1.00762012,67387.0,67386.0,0.000924]
[1722292786667,1.07026592,67387.0,67386.0,0.000924]
[1722292787111,1.08126592,67387.0,67386.0,0.000924]
[1722292787309,1.08108208,67387.0,67386.0,0.000924]
[1722292788089,1.37787508,67387.0,67386.0,0.000924]
[1722292790584,1.32282654,67387.0,67386.0,0.000924]
[1722292790767,1.37778481,67387.0,67386.0,0.000924]
[1722292792040,1.33686679,67387.0,67386.0,0.000924]
[1722292792484,1.31358481,67387.0,67386.0,0.000924]
[1722292792905,1.01679181,67387.0,67386.0,0.000924]
[1722292793925,1.01660026,67387.0,67386.0,0.082524]
[1722292794125,1.01660026,67387.0,67386.0,0.0972488]
[1722292794937,1.01660026,67387.0,67386.0,0.0156488]
[1722292795875,1.0398819,67387.0,67386.0,0.000924]
[1722292796164,1.039489,67387.0,67386.0,0.000924]
[1722292798157,1.01620736,67387.0,67386.0,0.000924]
[1722292800372,1.01257784,67387.0,67386.0,0.000924]
[1722292800561,1.01278538,67387.0,67386.0,0.000924]
[1722292802884,1.03619243,67387.0,67386.0,0.000924]
[1722292803205,1.01291067,67387.0,67386.0,0.000924]
[1722292803811,0.27622528,67387.0,67386.0,0.10440316]
[1722292804330,0.57301828,67387.0,67386.0,0.10440316]
[1722292804677,0.57301828,67387.0,67386.0,0.000924]
[1722292804678,1.07621067,67387.0,67386.0,0.000924]
[1722292805020,1.03687027,67387.0,67386.0,0.000924]
[1722292805831,1.06015256,67387.0,67386.0,0.000924]
[1722292806115,1.00505301,67387.0,67386.0,0.000924]
[1722292806257,1.03619756,67387.0,67386.0,0.000924]
[1722292806554,1.07435694,67387.0,67386.0,0.000924]
[1722292809423,1.01881058,67387.0,67386.0,0.000924]
[1722292809628,1.07317714,67387.0,67386.0,0.000924]
[1722292810569,1.36997014,67387.0,67386.0,0.000924]
[1722292810770,1.48087753,67387.0,67386.0,0.000924]
[1722292810969,1.36997014,67387.0,67386.0,0.000924]
[1722292811910,1.48087249,67387.0,67386.0,0.000924]
[1722292812087,1.36997014,67387.0,67386.0,0.000924]
[1722292812425,1.48087249,67387.0,67386.0,0.000924]
[1722292812628,1.48105489,67387.0,67386.0,0.000924]
[1722292812888,1.48105541,67387.0,67386.0,0.000924]
[1722292813062,1.50433749,67387.0,67386.0,0.000924]
[1722292813243,1.03334244,67387.0,67386.0,0.000924]
[1722292813444,1.01006036,67387.0,67386.0,0.000924]
[1722292813659,0.06717891,67387.0,67386.0,1.009616]
[1722292813835,0.023,67387.0,67386.0,1.23398284]
[1722292814036,0.023,67387.0,67386.0,1.21198284]
[1722292814242,0.023,67387.0,67386.0,1.20198284]
[1722292815335,0.023,67387.0,67386.0,1.07867]
[1722292816259,0.012,67387.0,67386.0,1.375467]
[1722292816372,0.012,67387.0,67386.0,1.386467]
[1722292816575,0.012,67387.0,67386.0,1.385467]
[1722292816790,0.012,67387.0,67386.0,1.07867]
[1722292816985,0.012,67387.0,67386.0,1.08067]
[1722292817384,0.012,67387.0,67386.0,1.377467]
[1722292817585,0.00084,67392.0,67391.0,0.148387]
[1722292817847,0.00084,67392.0,67391.0,0.5328174]
[1722292818048,0.00084,67392.0,67391.0,0.8295924]
[1722292818347,0.00084,67392.0,67391.0,0.75804885]
[1722292818495,0.00084,67392.0,67391.0,0.2274]
[1722292818693,0.00584,67392.0,67391.0,0.376787]
[1722292818890,0.14893939,67392.0,67391.0,0.0815]
[1722292819089,0.59409539,67392.0,67391.0,0.001]
[1722292819350,0.63008955,67392.0,67391.0,0.001]
[1722292819524,0.63408955,67392.0,67391.0,0.001]
[1722292819915,0.63408955,67392.0,67391.0,0.01072555]
[1722292820249,0.63408955,67392.0,67391.0,0.001]
[1722292820675,0.33731855,67392.0,67391.0,0.001]
[1722292820822,0.1499442,67390.0,67386.0,0.09625546]
[1722292821028,0.0015542,67388.0,67386.0,0.09625546]
[1722292821223,0.14465359,67388.0,67386.0,0.09625546]
[1722292822462,0.16793296,67388.0,67386.0,0.09625546]
[1722292822824,0.17793296,67388.0,67386.0,0.09625546]
[1722292825124,0.17793296,67388.0,67387.0,0.0454125]
[1722292825299,0.17637876,67388.0,67387.0,0.0454125]
[1722292827271,0.16637876,67388.0,67387.0,0.0454125]
[1722292827673,0.17637876,67388.0,67387.0,0.0454125]
[1722292827894,0.15309939,67388.0,67387.0,0.0454125]
[1722292828280,0.16309939,67388.0,67387.0,0.0454125]
[1722292828481,0.15309939,67388.0,67387.0,0.0454125]
[1722292828932,0.16309939,67388.0,67387.0,0.0454125]
[1722292830727,0.16309939,67388.0,67387.0,0.1229125]
[1722292830953,0.16309939,67388.0,67387.0,0.1849125]
[1722292831493,0.16309939,67388.0,67387.0,0.3333085]
[1722292831858,0.16309939,67388.0,67387.0,0.1849125]
[1722292832433,0.1764542,67388.0,67387.0,0.1849125]
[1722292832628,0.19973318,67388.0,67387.0,0.1849125]
[1722292832829,0.19973318,67388.0,67387.0,0.3333085]
[1722292833180,0.1764542,67388.0,67387.0,0.3333085]
[1722292834379,0.21509326,67388.0,67387.0,0.3333085]
[1722292835587,0.23837224,67388.0,67387.0,0.3333085]
[1722292835787,0.21509326,67388.0,67387.0,0.3333085]
[1722292838836,0.23837224,67388.0,67387.0,0.3333085]
[1722292839874,0.21509326,67388.0,67387.0,0.3333085]
[1722292843064,0.23837233,67388.0,67387.0,0.3333085]
[1722292843517,0.21509326,67388.0,67387.0,0.3333085]
[1722292844127,0.03335481,67388.0,67387.0,0.3333085]
[1722292844798,0.02,67388.0,67387.0,0.3333085]
[1722292845005,0.02,67388.0,67387.0,0.2713085]
[1722292846619,0.02,67388.0,67387.0,0.8648945]
[1722292846820,0.04327894,67388.0,67387.0,0.8648945]
[1722292847043,0.02,67388.0,67387.0,0.8648945]
[1722292848990,0.02,67388.0,67387.0,0.9512945]
[1722292850607,0.04327859,67388.0,67387.0,0.9512945]
[1722292850827,0.02,67388.0,67387.0,0.9512945]
[1722292856085,0.04327859,67388.0,67387.0,0.9512945]